[Event "*** SCC Grand Prix: Titled Tuesday Blitz"]
[Site "Chess.com"]
[Date "2020.09.29"]
[Round "3"]
[White "Anna_ChessMate"]
[Black "ferdipy"]
[Result "1-0"]
[WhiteElo "2571"]
[BlackElo "2368"]
[TimeControl "180+1"]
[EndTime "10:26:50 PDT"]
[Termination "Anna_ChessMate won by resignation"]

1. d4 {[%clk 0:03:00.9]} 1... Nf6 {[%clk 0:02:59.5]} 2. c4 {[%clk 0:03:01.4]}
2... e6 {[%clk 0:03:00.1]} 3. Nf3 {[%clk 0:03:01.8]} 3... Bb4+ {[%clk
0:03:00.4]} 4. Bd2 {[%clk 0:03:01.7]} 4... Qe7 {[%clk 0:03:01]} 5. g3 {[%clk
0:03:01.4]} 5... Nc6 {[%clk 0:03:01.5]} 6. Bg2 {[%clk 0:03:01.8]} 6... Bxd2+
{[%clk 0:03:02.1]} 7. Nbxd2 {[%clk 0:03:01.7]} 7... d6 {[%clk 0:03:01.9]} 8. O-O
{[%clk 0:03:00.3]} 8... O-O {[%clk 0:02:58.2]} 9. e4 {[%clk 0:03:00.7]} 9... e5
{[%clk 0:02:58.6]} 10. d5 {[%clk 0:03:01.3]} 10... Nb8 {[%clk 0:02:59.3]} 11. b4
{[%clk 0:03:01.6]} 11... a5 {[%clk 0:02:58.5]} 12. a3 {[%clk 0:03:01.4]} 12...
Na6 {[%clk 0:02:58.6]} 13. Qb3 {[%clk 0:02:59.5]} 13... Bg4 {[%clk 0:02:56.8]}
14. Rac1 {[%clk 0:02:58]} 14... c6 {[%clk 0:02:49.7]} 15. Rfe1 {[%clk
0:02:55.5]} 15... Rfc8 {[%clk 0:02:44]} 16. c5 {[%clk 0:02:19.2]} 16... dxc5
{[%clk 0:01:54.2]} 17. d6 {[%clk 0:02:14.2]} 17... Qxd6 {[%clk 0:01:51.2]} 18.
Nc4 {[%clk 0:02:14.4]} 18... Qc7 {[%clk 0:01:44.4]} 19. Nfxe5 {[%clk 0:02:00.4]}
19... axb4 {[%clk 0:01:37.8]} 20. Nxg4 {[%clk 0:01:53.2]} 20... Nxg4 {[%clk
0:01:37.8]} 21. e5 {[%clk 0:01:50.9]} 21... Re8 {[%clk 0:01:32.4]} 22. f4 {[%clk
0:01:45.9]} 22... bxa3 {[%clk 0:01:21.9]} 23. h3 {[%clk 0:01:44.1]} 23... Nh6
{[%clk 0:01:21.8]} 24. Nd6 {[%clk 0:01:39.9]} 24... Re7 {[%clk 0:01:20.4]} 25.
Qxa3 {[%clk 0:01:37.5]} 25... Rd8 {[%clk 0:00:57.2]} 26. g4 {[%clk 0:01:31.4]}
26... Kh8 {[%clk 0:00:46.6]} 27. Rb1 {[%clk 0:01:31.1]} 27... Rxd6 {[%clk
0:00:43.3]} 28. exd6 {[%clk 0:01:29]} 28... Rxe1+ {[%clk 0:00:44.2]} 29. Rxe1
{[%clk 0:01:27.9]} 29... Qxd6 {[%clk 0:00:45.1]} 30. Re8+ {[%clk 0:01:25.8]}
30... Ng8 {[%clk 0:00:45.3]} 31. Qb3 {[%clk 0:01:06]} 31... Qd4+ {[%clk
0:00:35.2]} 32. Kh1 {[%clk 0:01:05.8]} 32... c4 {[%clk 0:00:31]} 33. Qxb7 {[%clk
0:01:03.9]} 33... g6 {[%clk 0:00:23.6]} 34. Qxf7 {[%clk 0:01:01]} 34... Qg7
{[%clk 0:00:22.3]} 35. Qxc4 {[%clk 0:01:01.1]} 35... Nc7 {[%clk 0:00:21.8]} 36.
Rc8 {[%clk 0:00:58.2]} 36... Ne6 {[%clk 0:00:14.4]} 37. Qxe6 {[%clk 0:00:57.6]}
1-0

[Event "*** SCC Grand Prix: Titled Tuesday Blitz"]
[Site "Chess.com"]
[Date "2020.09.29"]
[Round "3"]
[White "renehp"]
[Black "Larina_Marija"]
[Result "1-0"]
[WhiteElo "2470"]
[BlackElo "2198"]
[TimeControl "180+1"]
[EndTime "10:26:50 PDT"]
[Termination "renehp won by checkmate"]

1. e4 {[%clk 0:02:59]} 1... c6 {[%clk 0:02:59.6]} 2. d4 {[%clk 0:02:58.8]} 2...
d5 {[%clk 0:02:59.9]} 3. Nc3 {[%clk 0:02:59.5]} 3... dxe4 {[%clk 0:02:59]} 4.
Nxe4 {[%clk 0:03:00.4]} 4... Nf6 {[%clk 0:02:59.5]} 5. Nxf6+ {[%clk 0:03:00.7]}
5... exf6 {[%clk 0:03:00.4]} 6. c3 {[%clk 0:03:01.2]} 6... Bd6 {[%clk
0:02:59.7]} 7. Bd3 {[%clk 0:03:01.3]} 7... O-O {[%clk 0:02:56.3]} 8. Ne2 {[%clk
0:03:01.6]} 8... Re8 {[%clk 0:02:55.4]} 9. Qc2 {[%clk 0:03:01.7]} 9... h5 {[%clk
0:02:54.7]} 10. O-O {[%clk 0:03:02.2]} 10... h4 {[%clk 0:02:53.9]} 11. Bf4
{[%clk 0:03:01.8]} 11... h3 {[%clk 0:02:52]} 12. Bxd6 {[%clk 0:02:54]} 12...
hxg2 {[%clk 0:02:47.6]} 13. Rfe1 {[%clk 0:02:53.4]} 13... Qxd6 {[%clk 0:02:44]}
14. Ng3 {[%clk 0:02:53]} 14... Qd8 {[%clk 0:02:14.4]} 15. Qd2 {[%clk 0:02:11.7]}
15... Bh3 {[%clk 0:02:11.4]} 16. Qf4 {[%clk 0:02:06.7]} 16... Be6 {[%clk
0:01:23.7]} 17. Qh4 {[%clk 0:01:58.2]} 17... g6 {[%clk 0:01:21.6]} 18. Qh6
{[%clk 0:01:58.3]} 18... Nd7 {[%clk 0:01:15]} 19. Bxg6 {[%clk 0:01:48.9]} 19...
fxg6 {[%clk 0:00:58.3]} 20. Qxg6+ {[%clk 0:01:43.9]} 20... Kf8 {[%clk
0:00:58.4]} 21. Nh5 {[%clk 0:01:37.7]} 21... Re7 {[%clk 0:00:42.5]} 22. Qh6+
{[%clk 0:00:55.6]} 22... Ke8 {[%clk 0:00:33.9]} 23. Rxe6 {[%clk 0:00:39.7]}
23... Rxe6 {[%clk 0:00:28.2]} 24. Ng7+ {[%clk 0:00:39.7]} 24... Kf7 {[%clk
0:00:26.7]} 25. Nxe6 {[%clk 0:00:39.9]} 25... Kxe6 {[%clk 0:00:27.1]} 26. Re1+
{[%clk 0:00:40.5]} 26... Kd6 {[%clk 0:00:26]} 27. Qf4+ {[%clk 0:00:40.8]} 27...
Kd5 {[%clk 0:00:24.4]} 28. b3 {[%clk 0:00:40.9]} 28... c5 {[%clk 0:00:23]} 29.
c4+ {[%clk 0:00:34.8]} 29... Kc6 {[%clk 0:00:22.8]} 30. Re6# {[%clk 0:00:35.1]}
1-0

[Event "*** SCC Grand Prix: Titled Tuesday Blitz"]
[Site "Chess.com"]
[Date "2020.09.29"]
[Round "3"]
[White "SergioGarciaFuentes"]
[Black "amiralfio"]
[Result "0-1"]
[WhiteElo "2184"]
[BlackElo "2467"]
[TimeControl "180+1"]
[EndTime "10:26:50 PDT"]
[Termination "amiralfio won on time"]

1. Nf3 {[%clk 0:03:00.9]} 1... f5 {[%clk 0:02:59]} 2. d3 {[%clk 0:03:00.3]} 2...
Nc6 {[%clk 0:02:58.8]} 3. e4 {[%clk 0:02:56.1]} 3... e5 {[%clk 0:02:57.6]} 4.
Nc3 {[%clk 0:02:26.1]} 4... Nf6 {[%clk 0:02:54.1]} 5. exf5 {[%clk 0:02:20.6]}
5... d5 {[%clk 0:02:49.2]} 6. d4 {[%clk 0:02:20.4]} 6... e4 {[%clk 0:02:43.8]}
7. Nh4 {[%clk 0:02:18.3]} 7... Bd6 {[%clk 0:02:23.6]} 8. h3 {[%clk 0:02:11.8]}
8... Qe7 {[%clk 0:02:19.6]} 9. Bg5 {[%clk 0:01:43.3]} 9... Qf7 {[%clk
0:02:13.2]} 10. Be2 {[%clk 0:01:27.5]} 10... Ne7 {[%clk 0:01:50.3]} 11. g4
{[%clk 0:01:09.9]} 11... Bd7 {[%clk 0:01:32.1]} 12. Qd2 {[%clk 0:00:49]} 12...
O-O-O {[%clk 0:01:26.1]} 13. O-O-O {[%clk 0:00:44]} 13... Kb8 {[%clk 0:01:25.3]}
14. Kb1 {[%clk 0:00:43.9]} 14... g6 {[%clk 0:01:15.2]} 15. Bxf6 {[%clk
0:00:27.4]} 15... Qxf6 {[%clk 0:01:16.1]} 16. g5 {[%clk 0:00:27.5]} 16... Qf7
{[%clk 0:01:15.6]} 17. f6 {[%clk 0:00:27.6]} 17... Nf5 {[%clk 0:01:16.1]} 18.
Nxf5 {[%clk 0:00:23]} 18... gxf5 {[%clk 0:01:17]} 19. Rdg1 {[%clk 0:00:18.5]}
19... f4 {[%clk 0:01:15.8]} 20. Bg4 {[%clk 0:00:18.1]} 20... h6 {[%clk
0:01:09.8]} 21. Bxd7 {[%clk 0:00:16.3]} 21... Rxd7 {[%clk 0:01:10.4]} 22. h4
{[%clk 0:00:14]} 22... Rdd8 {[%clk 0:01:03.5]} 23. Qd1 {[%clk 0:00:09]} 23... f3
{[%clk 0:00:55.2]} 24. Qf1 {[%clk 0:00:06.9]} 24... Rdg8 {[%clk 0:00:53.5]} 25.
Qc1 {[%clk 0:00:03.1]} 25... c6 {[%clk 0:00:45.9]} 26. Nd1 {[%clk 0:00:03]}
26... Qg6 {[%clk 0:00:43.1]} 0-1

[Event "*** SCC Grand Prix: Titled Tuesday Blitz"]
[Site "Chess.com"]
[Date "2020.09.29"]
[Round "3"]
[White "TheCavemanChesss"]
[Black "GiantThresher"]
[Result "0-1"]
[WhiteElo "2435"]
[BlackElo "2768"]
[TimeControl "180+1"]
[EndTime "10:26:51 PDT"]
[Termination "GiantThresher won by resignation"]

1. e4 {[%clk 0:03:00.9]} 1... e6 {[%clk 0:02:59.2]} 2. d4 {[%clk 0:03:00.9]}
2... d5 {[%clk 0:03:00.1]} 3. Nc3 {[%clk 0:03:01.4]} 3... Bb4 {[%clk 0:02:59.6]}
4. e5 {[%clk 0:03:01.1]} 4... c5 {[%clk 0:02:59.4]} 5. a3 {[%clk 0:03:01.2]}
5... Bxc3+ {[%clk 0:02:59.9]} 6. bxc3 {[%clk 0:03:02.1]} 6... Ne7 {[%clk
0:03:00.8]} 7. Qg4 {[%clk 0:03:02.6]} 7... O-O {[%clk 0:03:00.5]} 8. Bd3 {[%clk
0:03:02.3]} 8... Nbc6 {[%clk 0:03:00.6]} 9. Nf3 {[%clk 0:02:48.7]} 9... f5
{[%clk 0:02:59.8]} 10. Qh3 {[%clk 0:02:48.8]} 10... Qa5 {[%clk 0:02:56.5]} 11.
Bd2 {[%clk 0:02:46.5]} 11... Qa4 {[%clk 0:02:56.8]} 12. O-O {[%clk 0:02:38.9]}
12... cxd4 {[%clk 0:02:41.6]} 13. cxd4 {[%clk 0:01:55.6]} 13... Nxd4 {[%clk
0:02:42.5]} 14. Bb4 {[%clk 0:01:55.8]} 14... Nxf3+ {[%clk 0:02:39.1]} 15. Qxf3
{[%clk 0:01:55.9]} 15... Rf7 {[%clk 0:02:39.6]} 16. c4 {[%clk 0:01:48]} 16...
Nc6 {[%clk 0:02:33.1]} 17. Rfe1 {[%clk 0:01:27.2]} 17... dxc4 {[%clk 0:02:28.9]}
18. Bxc4 {[%clk 0:01:24.6]} 18... Nxb4 {[%clk 0:02:29.1]} 19. axb4 {[%clk
0:01:24.4]} 19... Qxb4 {[%clk 0:02:30]} 20. Ba2 {[%clk 0:01:08.4]} 20... Qg4
{[%clk 0:02:19.5]} 21. Qc3 {[%clk 0:01:01.7]} 21... Bd7 {[%clk 0:02:18.6]} 22.
f3 {[%clk 0:00:57.7]} 22... Qg6 {[%clk 0:02:18.2]} 23. Rad1 {[%clk 0:00:52.2]}
23... Bc6 {[%clk 0:01:55.4]} 24. Rd6 {[%clk 0:00:50.9]} 24... Re7 {[%clk
0:01:55.9]} 25. Red1 {[%clk 0:00:46.5]} 25... h6 {[%clk 0:01:54.3]} 26. Qb3
{[%clk 0:00:25]} 26... Rae8 {[%clk 0:01:42.7]} 27. Qa3 {[%clk 0:00:24]} 27...
Kh8 {[%clk 0:01:39.1]} 28. Rd8 {[%clk 0:00:17.5]} 28... Rxd8 {[%clk 0:01:28.6]}
29. Rxd8+ {[%clk 0:00:18.4]} 29... Re8 {[%clk 0:01:29.5]} 30. Rxe8+ {[%clk
0:00:17.9]} 30... Bxe8 {[%clk 0:01:20.8]} 31. Qd6 {[%clk 0:00:17.8]} 31... f4
{[%clk 0:00:56]} 32. Qxe6 {[%clk 0:00:13.4]} 32... Qxe6 {[%clk 0:00:54.7]} 33.
Bxe6 {[%clk 0:00:14.3]} 33... g5 {[%clk 0:00:54.1]} 34. Bc8 {[%clk 0:00:14.2]}
34... b5 {[%clk 0:00:53.7]} 35. e6 {[%clk 0:00:14.6]} 35... Kg7 {[%clk 0:00:52]}
36. Bd7 {[%clk 0:00:15.5]} 36... Kf8 {[%clk 0:00:52.5]} 0-1

[Event "*** SCC Grand Prix: Titled Tuesday Blitz"]
[Site "Chess.com"]
[Date "2020.09.29"]
[Round "3"]
[White "Aleksey_Sorokin"]
[Black "NikolaGry"]
[Result "0-1"]
[WhiteElo "2812"]
[BlackElo "2648"]
[TimeControl "180+1"]
[EndTime "10:26:53 PDT"]
[Termination "NikolaGry won by resignation"]

1. d4 {[%clk 0:03:00.9]} 1... d5 {[%clk 0:02:59.6]} 2. c4 {[%clk 0:03:01]} 2...
Nc6 {[%clk 0:02:59.5]} 3. Nf3 {[%clk 0:02:57.8]} 3... Bg4 {[%clk 0:02:57.8]} 4.
cxd5 {[%clk 0:02:54.3]} 4... Bxf3 {[%clk 0:02:57.6]} 5. gxf3 {[%clk 0:02:50.2]}
5... Qxd5 {[%clk 0:02:57]} 6. e3 {[%clk 0:02:49.7]} 6... e5 {[%clk 0:02:56.9]}
7. Nc3 {[%clk 0:02:49.6]} 7... Bb4 {[%clk 0:02:57]} 8. Bd2 {[%clk 0:02:48.7]}
8... Bxc3 {[%clk 0:02:57.2]} 9. bxc3 {[%clk 0:02:48.3]} 9... Qd6 {[%clk
0:02:57.1]} 10. Qb3 {[%clk 0:02:45.1]} 10... b6 {[%clk 0:02:56.5]} 11. Bb5
{[%clk 0:02:33.9]} 11... Ne7 {[%clk 0:02:53.4]} 12. c4 {[%clk 0:02:23.7]} 12...
O-O {[%clk 0:02:24.6]} 13. d5 {[%clk 0:02:22]} 13... Nd8 {[%clk 0:02:17.2]} 14.
Bb4 {[%clk 0:02:15.9]} 14... Qf6 {[%clk 0:02:17]} 15. e4 {[%clk 0:02:14.1]}
15... Nb7 {[%clk 0:02:13.1]} 16. Bc6 {[%clk 0:02:06.3]} 16... Nxc6 {[%clk
0:02:05.2]} 17. dxc6 {[%clk 0:02:07.2]} 17... Nc5 {[%clk 0:02:02.4]} 18. Bxc5
{[%clk 0:02:05.5]} 18... bxc5 {[%clk 0:02:02.6]} 19. Ke2 {[%clk 0:01:57.4]}
19... Qxc6 {[%clk 0:01:45.1]} 20. Rhd1 {[%clk 0:01:56.5]} 20... f5 {[%clk
0:01:41.5]} 21. Qe3 {[%clk 0:01:43.6]} 21... Qe6 {[%clk 0:01:08.8]} 22. Rd5
{[%clk 0:01:39.9]} 22... Rab8 {[%clk 0:01:04.7]} 23. Rad1 {[%clk 0:01:39]} 23...
Rb2+ {[%clk 0:01:02.2]} 24. R1d2 {[%clk 0:01:38.1]} 24... Rxd2+ {[%clk 0:01:02]}
25. Kxd2 {[%clk 0:01:36.8]} 25... Qa6 {[%clk 0:01:01.5]} 26. Rxc5 {[%clk
0:01:12.5]} 26... Qxa2+ {[%clk 0:00:57.8]} 27. Ke1 {[%clk 0:01:12.5]} 27... Qb1+
{[%clk 0:00:48.4]} 28. Ke2 {[%clk 0:01:07.3]} 28... Rb8 {[%clk 0:00:45.8]} 29.
Rd5 {[%clk 0:00:57.1]} 29... Rb2+ {[%clk 0:00:31.6]} 30. Rd2 {[%clk 0:00:56.8]}
30... fxe4 {[%clk 0:00:29.5]} 31. fxe4 {[%clk 0:00:55.5]} 31... Rxd2+ {[%clk
0:00:29.3]} 32. Kxd2 {[%clk 0:00:55.4]} 32... Qb4+ {[%clk 0:00:29]} 33. Kd1
{[%clk 0:00:52]} 33... Qxc4 {[%clk 0:00:29]} 34. Qxa7 {[%clk 0:00:50.1]} 34...
Qd4+ {[%clk 0:00:24.4]} 35. Qxd4 {[%clk 0:00:49.7]} 35... exd4 {[%clk
0:00:24.6]} 36. Kd2 {[%clk 0:00:50.6]} 36... g5 {[%clk 0:00:23]} 37. Kd3 {[%clk
0:00:41]} 37... c5 {[%clk 0:00:22.5]} 0-1

[Event "*** SCC Grand Prix: Titled Tuesday Blitz"]
[Site "Chess.com"]
[Date "2020.09.29"]
[Round "3"]
[White "Alexander_Donchenko"]
[Black "dyziotomi99"]
[Result "1-0"]
[WhiteElo "2682"]
[BlackElo "2455"]
[TimeControl "180+1"]
[EndTime "10:26:53 PDT"]
[Termination "Alexander_Donchenko won by resignation"]

1. e4 {[%clk 0:03:00.9]} 1... c5 {[%clk 0:02:59.8]} 2. Nf3 {[%clk 0:03:00.8]}
2... Nc6 {[%clk 0:02:59.8]} 3. d4 {[%clk 0:03:00.8]} 3... cxd4 {[%clk
0:03:00.1]} 4. Nxd4 {[%clk 0:03:01.7]} 4... e6 {[%clk 0:03:00.5]} 5. Nc3 {[%clk
0:03:01.3]} 5... a6 {[%clk 0:03:00.4]} 6. Be3 {[%clk 0:03:00.9]} 6... Nf6 {[%clk
0:03:00.3]} 7. a3 {[%clk 0:02:56.8]} 7... Qc7 {[%clk 0:02:59.3]} 8. Be2 {[%clk
0:02:56.1]} 8... Be7 {[%clk 0:02:58.6]} 9. O-O {[%clk 0:02:56.2]} 9... O-O
{[%clk 0:02:58.8]} 10. f4 {[%clk 0:02:54.3]} 10... d6 {[%clk 0:02:59.1]} 11. Qe1
{[%clk 0:02:54.4]} 11... Bd7 {[%clk 0:02:55.7]} 12. Qg3 {[%clk 0:02:53.5]} 12...
Nxd4 {[%clk 0:02:55.8]} 13. Bxd4 {[%clk 0:02:53.3]} 13... Bc6 {[%clk 0:02:56.3]}
14. Bd3 {[%clk 0:02:50.5]} 14... Nh5 {[%clk 0:02:51.1]} 15. Qh3 {[%clk
0:02:45.8]} 15... g6 {[%clk 0:02:49.5]} 16. Rf3 {[%clk 0:02:35.3]} 16... e5
{[%clk 0:02:45.3]} 17. fxe5 {[%clk 0:02:33]} 17... dxe5 {[%clk 0:02:45.6]} 18.
Be3 {[%clk 0:02:24.9]} 18... Nf4 {[%clk 0:02:38.1]} 19. Bxf4 {[%clk 0:02:22.7]}
19... exf4 {[%clk 0:02:38.6]} 20. Qh6 {[%clk 0:02:21.7]} 20... Bd7 {[%clk
0:02:09.1]} 21. Nd5 {[%clk 0:02:16.1]} 21... Qc5+ {[%clk 0:01:59.7]} 22. Kh1
{[%clk 0:02:15.4]} 22... Bd8 {[%clk 0:02:00]} 23. Rxf4 {[%clk 0:02:04.9]} 23...
Bc6 {[%clk 0:01:40]} 24. Rf3 {[%clk 0:01:42.2]} 24... Qd4 {[%clk 0:01:22]} 25.
Raf1 {[%clk 0:01:33.5]} 25... Bxd5 {[%clk 0:01:15.2]} 26. exd5 {[%clk
0:01:32.7]} 26... f5 {[%clk 0:01:00.3]} 27. d6 {[%clk 0:01:27.5]} 27... Bf6
{[%clk 0:00:54.8]} 28. Rh3 {[%clk 0:01:06.2]} 28... Rf7 {[%clk 0:00:52.6]} 29.
c3 {[%clk 0:00:58.4]} 29... Qc5 {[%clk 0:00:39.1]} 30. Bb1 {[%clk 0:00:48.1]}
30... Rg7 {[%clk 0:00:33.7]} 31. Bxf5 {[%clk 0:00:40.5]} 31... Qxd6 {[%clk
0:00:26.4]} 32. Bxg6 {[%clk 0:00:37]} 32... hxg6 {[%clk 0:00:25.2]} 33. Qh8+
{[%clk 0:00:36.8]} 33... Kf7 {[%clk 0:00:25.3]} 34. Qxa8 {[%clk 0:00:37.4]}
34... Qc6 {[%clk 0:00:23.9]} 35. Rhf3 {[%clk 0:00:35.4]} 1-0

[Event "*** SCC Grand Prix: Titled Tuesday Blitz"]
[Site "Chess.com"]
[Date "2020.09.29"]
[Round "3"]
[White "Abdimalik_Abdisalimov"]
[Black "BigAl"]
[Result "0-1"]
[WhiteElo "2725"]
[BlackElo "2519"]
[TimeControl "180+1"]
[EndTime "10:26:54 PDT"]
[Termination "BigAl won by resignation"]

1. d4 {[%clk 0:02:59.5]} 1... Nf6 {[%clk 0:02:59.7]} 2. c4 {[%clk 0:02:59.4]}
2... g6 {[%clk 0:03:00.2]} 3. f3 {[%clk 0:02:59.5]} 3... Bg7 {[%clk 0:03:00.7]}
4. e4 {[%clk 0:03:00]} 4... O-O {[%clk 0:03:01.4]} 5. Nc3 {[%clk 0:03:00.5]}
5... d6 {[%clk 0:03:02.1]} 6. Nge2 {[%clk 0:03:00.8]} 6... Nc6 {[%clk
0:03:02.5]} 7. Bg5 {[%clk 0:03:00.3]} 7... a6 {[%clk 0:02:59.6]} 8. Rc1 {[%clk
0:02:59.8]} 8... Rb8 {[%clk 0:02:53.8]} 9. Qd2 {[%clk 0:02:57.8]} 9... e5 {[%clk
0:02:29.1]} 10. d5 {[%clk 0:02:56.3]} 10... Na5 {[%clk 0:02:27.2]} 11. Nd1
{[%clk 0:02:54.8]} 11... c5 {[%clk 0:02:26.2]} 12. dxc6 {[%clk 0:02:39.5]} 12...
Nxc6 {[%clk 0:02:18]} 13. h4 {[%clk 0:02:11.8]} 13... Be6 {[%clk 0:02:12.9]} 14.
h5 {[%clk 0:02:10.3]} 14... Rc8 {[%clk 0:02:09.7]} 15. hxg6 {[%clk 0:02:01.7]}
15... fxg6 {[%clk 0:02:08.5]} 16. Bh6 {[%clk 0:02:00.8]} 16... Bxh6 {[%clk
0:01:59.4]} 17. Rxh6 {[%clk 0:02:01.7]} 17... b5 {[%clk 0:01:54.6]} 18. cxb5
{[%clk 0:02:00.1]} 18... axb5 {[%clk 0:01:55]} 19. b3 {[%clk 0:01:55.1]} 19...
d5 {[%clk 0:01:31.7]} 20. exd5 {[%clk 0:01:49.1]} 20... Nxd5 {[%clk 0:01:32]}
21. Ne3 {[%clk 0:01:40.5]} 21... Nf4 {[%clk 0:01:15.4]} 22. Nc3 {[%clk
0:01:03.7]} 22... Nd4 {[%clk 0:01:01.3]} 23. Rd1 {[%clk 0:00:25.1]} 23... Qg5
{[%clk 0:00:53.1]} 24. Ng4 {[%clk 0:00:08.3]} 24... Bxg4 {[%clk 0:00:48.2]} 25.
Rh1 {[%clk 0:00:06.5]} 25... Bf5 {[%clk 0:00:44]} 26. Kf2 {[%clk 0:00:04.6]}
26... b4 {[%clk 0:00:38.3]} 0-1

[Event "*** SCC Grand Prix: Titled Tuesday Blitz"]
[Site "Chess.com"]
[Date "2020.09.29"]
[Round "3"]
[White "Sacbutt"]
[Black "Chesswizard_2007"]
[Result "0-1"]
[WhiteElo "2277"]
[BlackElo "2566"]
[TimeControl "180+1"]
[EndTime "10:26:56 PDT"]
[Termination "Chesswizard_2007 won by resignation"]

1. e4 {[%clk 0:03:00.9]} 1... a5 {[%clk 0:02:48.8]} 2. d4 {[%clk 0:03:00]} 2...
a4 {[%clk 0:02:45.5]} 3. Nf3 {[%clk 0:02:59.6]} 3... h5 {[%clk 0:02:45.6]} 4.
Bc4 {[%clk 0:02:59.1]} 4... h4 {[%clk 0:02:43.7]} 5. h3 {[%clk 0:02:58.2]} 5...
e6 {[%clk 0:02:43.5]} 6. O-O {[%clk 0:02:56.9]} 6... d6 {[%clk 0:02:42.5]} 7.
Nc3 {[%clk 0:02:42.6]} 7... c6 {[%clk 0:02:41.4]} 8. e5 {[%clk 0:02:32.7]} 8...
d5 {[%clk 0:02:39.8]} 9. Bd3 {[%clk 0:02:32.5]} 9... b5 {[%clk 0:02:39.6]} 10.
Ne2 {[%clk 0:02:26.4]} 10... Be7 {[%clk 0:02:34.3]} 11. Be3 {[%clk 0:02:16.6]}
11... Nd7 {[%clk 0:02:33.7]} 12. Qd2 {[%clk 0:02:15.6]} 12... Nb6 {[%clk
0:02:32.1]} 13. b3 {[%clk 0:02:11.4]} 13... Bd7 {[%clk 0:02:26.9]} 14. Bg5
{[%clk 0:01:53.5]} 14... Bxg5 {[%clk 0:02:22.2]} 15. Nxg5 {[%clk 0:01:52.5]}
15... Rh5 {[%clk 0:02:17.6]} 16. Nf3 {[%clk 0:01:45.9]} 16... g5 {[%clk
0:02:14.6]} 17. Nh2 {[%clk 0:01:36.3]} 17... Ne7 {[%clk 0:02:07.7]} 18. f4
{[%clk 0:01:34]} 18... Nf5 {[%clk 0:02:06.1]} 19. c3 {[%clk 0:01:29.1]} 19...
Qe7 {[%clk 0:02:01.8]} 20. Nf3 {[%clk 0:01:05.4]} 20... gxf4 {[%clk 0:02:00.4]}
21. Nxf4 {[%clk 0:01:02.8]} 21... Rh8 {[%clk 0:02:00.7]} 22. Bxf5 {[%clk
0:00:59.7]} 22... exf5 {[%clk 0:02:00.2]} 23. Qf2 {[%clk 0:00:55.6]} 23... Be6
{[%clk 0:01:58.6]} 24. Nd3 {[%clk 0:00:55.4]} 24... Kd8 {[%clk 0:01:54.5]} 25.
Nc5 {[%clk 0:00:54.3]} 25... Kc7 {[%clk 0:01:54.1]} 26. Nd2 {[%clk 0:00:51]}
26... Nd7 {[%clk 0:01:51.8]} 27. Nxd7 {[%clk 0:00:47.3]} 27... Qxd7 {[%clk
0:01:52.7]} 28. b4 {[%clk 0:00:46.7]} 28... Rag8 {[%clk 0:01:50.5]} 29. Rae1
{[%clk 0:00:37.5]} 29... Rg3 {[%clk 0:01:48.5]} 30. Re3 {[%clk 0:00:37.1]} 30...
Rhg8 {[%clk 0:01:45.5]} 31. Rxg3 {[%clk 0:00:36.8]} 31... Rxg3 {[%clk
0:01:46.4]} 32. Nf3 {[%clk 0:00:37.2]} 32... f4 {[%clk 0:01:45.3]} 33. Kh1
{[%clk 0:00:35.9]} 33... Qe7 {[%clk 0:01:38.9]} 34. a3 {[%clk 0:00:35.3]} 34...
Bf5 {[%clk 0:01:38.7]} 35. Re1 {[%clk 0:00:34.7]} 35... Be4 {[%clk 0:01:38.8]}
36. Kh2 {[%clk 0:00:30.3]} 36... Bxf3 {[%clk 0:01:38.1]} 37. gxf3 {[%clk
0:00:29.1]} 37... Qe6 {[%clk 0:01:37.9]} 38. Qf1 {[%clk 0:00:29.6]} 38... Kd7
{[%clk 0:01:34.4]} 39. Re2 {[%clk 0:00:26.9]} 39... Qf5 {[%clk 0:01:33.6]} 40.
Rg2 {[%clk 0:00:26.2]} 40... Ke6 {[%clk 0:01:33]} 41. Rxg3 {[%clk 0:00:19]}
41... fxg3+ {[%clk 0:01:33.9]} 42. Kg1 {[%clk 0:00:17.1]} 42... Qc2 {[%clk
0:01:33.1]} 43. Qg2 {[%clk 0:00:11.6]} 43... Qc1+ {[%clk 0:01:28]} 44. Qf1
{[%clk 0:00:10.3]} 44... Qxf1+ {[%clk 0:01:23.6]} 45. Kxf1 {[%clk 0:00:10.2]}
45... Kf5 {[%clk 0:01:24.5]} 46. Ke2 {[%clk 0:00:07.8]} 46... Kf4 {[%clk
0:01:22.6]} 0-1

[Event "*** SCC Grand Prix: Titled Tuesday Blitz"]
[Site "Chess.com"]
[Date "2020.09.29"]
[Round "3"]
[White "lucachess49"]
[Black "theblitzchamp"]
[Result "0-1"]
[WhiteElo "2403"]
[BlackElo "2636"]
[TimeControl "180+1"]
[EndTime "10:26:57 PDT"]
[Termination "theblitzchamp won on time"]

1. d4 {[%clk 0:03:00.9]} 1... d5 {[%clk 0:02:59.4]} 2. c4 {[%clk 0:02:56.1]}
2... c6 {[%clk 0:02:59.3]} 3. Nc3 {[%clk 0:02:55.6]} 3... Nf6 {[%clk 0:02:59.5]}
4. e3 {[%clk 0:02:56.1]} 4... e6 {[%clk 0:02:58.1]} 5. Nf3 {[%clk 0:02:55.9]}
5... Bd6 {[%clk 0:02:55.5]} 6. Qc2 {[%clk 0:02:55.5]} 6... dxc4 {[%clk
0:02:54.3]} 7. Bxc4 {[%clk 0:02:55.5]} 7... b5 {[%clk 0:02:54.8]} 8. Bd3 {[%clk
0:02:55.1]} 8... Bb7 {[%clk 0:02:54.6]} 9. O-O {[%clk 0:02:55.2]} 9... O-O
{[%clk 0:02:54.7]} 10. a3 {[%clk 0:02:50.8]} 10... Nbd7 {[%clk 0:02:54.5]} 11.
h3 {[%clk 0:02:40.9]} 11... a6 {[%clk 0:02:54.3]} 12. e4 {[%clk 0:02:10.1]}
12... e5 {[%clk 0:02:51.9]} 13. dxe5 {[%clk 0:02:10.8]} 13... Nxe5 {[%clk
0:02:51.4]} 14. Nxe5 {[%clk 0:02:11.5]} 14... Bxe5 {[%clk 0:02:51.5]} 15. Be3
{[%clk 0:02:12.4]} 15... h6 {[%clk 0:02:31.2]} 16. Rad1 {[%clk 0:02:10.6]} 16...
Qe7 {[%clk 0:02:30.8]} 17. f4 {[%clk 0:02:10.1]} 17... Bxc3 {[%clk 0:02:25.8]}
18. bxc3 {[%clk 0:02:02.3]} 18... Qxa3 {[%clk 0:02:25.2]} 19. Qf2 {[%clk
0:01:25.1]} 19... Rfe8 {[%clk 0:01:49.6]} 20. Bc1 {[%clk 0:00:28.5]} 20... Qb3
{[%clk 0:01:34.9]} 21. e5 {[%clk 0:00:21.6]} 21... Nd5 {[%clk 0:01:34.3]} 22.
Qg3 {[%clk 0:00:17.4]} 22... Qxc3 {[%clk 0:01:27.6]} 23. Kh2 {[%clk 0:00:07.7]}
23... Rad8 {[%clk 0:01:26.8]} 24. Rfe1 {[%clk 0:00:05.5]} 24... Kh8 {[%clk
0:01:07.5]} 25. f5 {[%clk 0:00:05.5]} 25... f6 {[%clk 0:01:07.7]} 26. e6 {[%clk
0:00:05.3]} 26... Nb4 {[%clk 0:01:05.6]} 27. Be4 {[%clk 0:00:03.8]} 27... Qxg3+
{[%clk 0:00:43.8]} 28. Kxg3 {[%clk 0:00:03.1]} 28... Nd5 {[%clk 0:00:44.3]} 29.
Bxd5 {[%clk 0:00:02.3]} 29... cxd5 {[%clk 0:00:43.1]} 30. Rd4 {[%clk 0:00:02]}
30... Rc8 {[%clk 0:00:42.2]} 0-1